bitfinex/quotes_SOLUSD_20241121
["timestamp","ask_amount","ask_price","bid_price","bid_amount"]
[1732231524589,7.58495502,256.56,256.49,9.7467]
[1732231525087,23.776884,256.55,256.49,9.7467]
[1732231525521,7.58495502,256.52,256.44,9.7485]
[1732231525689,7.58495502,256.52,256.45,7.58495502]
[1732231525883,23.776884,256.55,256.47,7.58495502]
[1732231526191,23.776884,256.55,256.5,7.58495502]
[1732231528408,23.776884,256.57,256.5,7.58495502]
[1732231528583,27.674384,256.57,256.5,7.58495502]
[1732231530006,27.674384,256.57,256.48,7.58495502]
[1732231530191,7.58495502,256.55,256.46,7.58495502]
[1732231530607,23.776884,256.54,256.46,7.58495502]
[1732231530793,23.776884,256.54,256.42,13.6494]
[1732231530994,7.58495502,256.53,256.45,20.0]
[1732231531300,7.58495502,256.53,256.46,7.58495502]
[1732231531507,7.58495502,256.55,256.46,7.58495502]
[1732231531811,23.776884,256.54,256.47,7.58495502]
[1732231532014,27.675284,256.52,256.44,7.58495502]
[1732231532309,27.675284,256.52,256.42,9.7496]
[1732231532310,23.776884,256.52,256.45,7.58495502]
[1732231532515,11.48275502,256.56,256.47,7.58495502]
[1732231532718,23.776884,256.55,256.47,7.58495502]
[1732231533598,11.48275502,256.56,256.42,9.7496]
[1732231533599,23.776884,256.56,256.49,7.58495502]
[1732231534110,35.25963902,256.56,256.47,9.7475]
[1732231534318,7.58495502,256.54,256.47,9.7475]
[1732231534505,35.25963902,256.56,256.47,9.7475]
[1732231534813,35.25963902,256.56,256.48,7.58495502]
[1732231535219,35.25963902,256.56,256.49,3.8987]
[1732231535892,7.58495502,256.53,256.47,13.6465]
[1732231536421,7.58495502,256.55,256.47,13.6465]
[1732231536608,23.776884,256.54,256.47,13.6465]
[1732231537316,7.58495502,256.53,256.39,20.0]
[1732231537499,23.776884,256.52,256.43,7.58495502]
[1732231537701,23.776884,256.52,256.42,9.7493]
[1732231537908,23.776884,256.52,256.44,7.58495502]
[1732231538522,27.675184,256.52,256.44,11.48445502]
[1732231540194,27.675184,256.52,256.42,9.7493]
[1732231540397,27.675184,256.52,256.45,7.58495502]
[1732231542924,3.8978,256.56,256.51,7.58495502]
[1732231543503,3.8978,256.56,256.49,7.58495502]
[1732231544318,23.776884,256.55,256.49,7.58495502]
[1732231548627,27.674384,256.57,256.49,7.58495502]
[1732231549201,27.674384,256.57,256.48,3.8988]
[1732231549423,27.674384,256.57,256.5,7.58495502]
[1732231549615,35.25933902,256.57,256.5,7.58495502]
[1732231550516,7.58495502,256.55,256.41,9.7497]
[1732231550722,27.674384,256.57,256.49,7.58495502]
[1732231550723,23.776884,256.54,256.49,7.58495502]
[1732231551104,23.776884,256.56,256.49,7.58495502]
[1732231551416,7.58495502,256.51,256.41,9.7497]
[1732231551621,23.776884,256.56,256.49,7.58495502]
[1732231551937,23.776884,256.53,256.41,9.7497]
[1732231552117,23.776884,256.53,256.45,7.58495502]
[1732231552299,3.8975,256.57,256.45,7.58495502]
[1732231552502,23.776884,256.56,256.49,7.58495502]
[1732231552704,23.776884,256.56,256.4,2.5]
[1732231552705,23.776884,256.55,256.47,3.8989]
[1732231552924,23.776884,256.5,256.41,9.7496]
[1732231553130,23.776884,256.5,256.42,7.58495502]
[1732231554223,27.675584,256.5,256.42,11.48465502]
[1732231555010,27.675584,256.5,256.44,7.58495502]
[1732231557223,27.675284,256.52,256.44,7.58495502]
[1732231557421,27.675284,256.52,256.46,7.58495502]
[1732231557630,7.58495502,256.55,256.48,7.58495502]
[1732231558332,7.58495502,256.56,256.48,7.58495502]
[1732231558904,23.776884,256.55,256.48,7.58495502]
[1732231559231,23.776884,256.56,256.5,7.58495502]
[1732231560226,3.8978,256.56,256.5,7.58495502]
[1732231560401,23.776884,256.55,256.5,7.58495502]
[1732231561130,23.776884,256.51,256.43,7.58495502]
[1732231561312,23.776884,256.51,256.41,20.0]
[1732231561633,23.776884,256.51,256.44,7.58495502]
[1732231562024,3.8984,256.52,256.44,11.48445502]
[1732231562213,23.776884,256.51,256.44,11.48445502]
[1732231563531,27.675384,256.51,256.44,10.50968215]
[1732231563909,23.776884,256.52,256.46,7.58495502]
[1732231564229,11.48315502,256.53,256.46,7.58495502]
[1732231564840,160.6,256.62,256.51,7.58495502]
[1732231565038,3.8975,256.57,256.51,7.58495502]
[1732231566818,13.09913534,256.67,256.55,7.58495502]
[1732231566819,0.2038133,256.58,256.55,7.58495502]
[1732231567024,0.2038133,256.58,256.57,7.58495502]
[1732231568926,0.2038133,256.58,256.55,11.48275502]
[1732231569510,0.2038133,256.58,256.53,7.58495502]
[1732231569729,0.2038133,256.58,256.52,13.6441]
[1732231569927,4.1013133,256.58,256.52,9.7458]
[1732231570123,4.1013133,256.58,256.48,3.8988]
[1732231570331,4.1013133,256.58,256.5,7.58495502]
[1732231570842,31.36183902,256.57,256.48,7.58495502]
[1732231571336,31.36183902,256.57,256.5,7.58495502]
[1732231572034,3.8977,256.56,256.49,7.58495502]
[1732231572334,31.36183902,256.55,256.44,3.8995]
[1732231572538,31.36183902,256.55,256.46,7.58495502]
[1732231573426,3.898,256.54,256.46,7.58495502]
[1732231573620,23.776884,256.53,256.46,7.58495502]
[1732231573827,31.36183902,256.53,256.46,7.58495502]
[1732231574128,31.36183902,256.53,256.44,7.58495502]
[1732231574631,31.36183902,256.53,256.43,11.48455502]
[1732231575015,3.8983,256.52,256.43,11.48455502]
[1732231575231,31.36183902,256.51,256.42,9.7493]
[1732231575435,7.58495502,256.51,256.43,7.58495502]
[1732231575617,3.8983,256.52,256.45,7.58495502]
[1732231579335,3.8983,256.52,256.45,11.48415502]
[1732231579519,3.898,256.55,256.49,7.58495502]
[1732231579935,3.898,256.55,256.47,7.58495502]
[1732231580327,7.58495502,256.54,256.45,17.33335502]
[1732231580615,23.776884,256.51,256.42,3.8997]
[1732231580814,23.776884,256.51,256.43,7.58495502]
[1732231581416,3.8986,256.5,256.43,7.58495502]
[1732231582842,3.8986,256.5,256.43,11.48455502]
[1732231583517,7.58495502,256.53,256.45,7.58495502]
[1732231583720,27.675284,256.52,256.45,7.58495502]
[1732231585249,3.8984,256.52,256.45,7.58495502]
[1732231585450,3.8984,256.52,256.47,7.58495502]
[1732231586443,3.8984,256.52,256.45,11.48425502]
[1732231587043,3.898,256.54,256.47,7.58495502]
[1732231588038,3.898,256.54,256.45,7.58495502]
[1732231588241,31.36183902,256.53,256.45,7.58495502]
[1732231589949,3.8983,256.52,256.45,7.58495502]
[1732231591338,3.8983,256.52,256.4,13.6504]
[1732231591557,31.36183902,256.51,256.43,7.58495502]
[1732231592643,3.8986,256.5,256.43,7.58495502]
[1732231593634,3.8986,256.5,256.43,11.48455502]
[1732231594348,25.605,256.57,256.45,7.58495502]
[1732231594528,7.58495502,256.54,256.45,7.58495502]
[1732231594733,35.25953902,256.56,256.47,7.58495502]
[1732231597559,35.25953902,256.56,256.44,7.58495502]
[1732231597560,23.776884,256.53,256.44,7.58495502]
[1732231597764,7.58495502,256.52,256.44,7.58495502]
[1732231597938,23.776884,256.51,256.42,20.0]
[1732231598138,23.776884,256.51,256.43,7.58495502]
[1732231598758,3.8986,256.5,256.43,11.48455502]
[1732231603642,27.675384,256.51,256.43,21.23375502]
[1732231603842,27.675384,256.51,256.45,7.58495502]
[1732231604960,27.675384,256.51,256.43,21.23375502]
[1732231607157,23.776884,256.51,256.43,21.23375502]
[1732231607344,7.58495502,256.54,256.45,7.58495502]
[1732231607653,23.776884,256.53,256.45,7.58495502]
[1732231607959,23.776884,256.55,256.45,7.58495502]
[1732231608359,23.776884,256.55,256.47,7.58495502]
[1732231608562,3.8977,256.56,256.47,7.58495502]
[1732231608773,15.861,256.57,256.51,7.58495502]
[1732231608977,19.7586,256.57,256.49,7.58495502]
[1732231609347,27.34355502,256.57,256.49,7.58495502]
[1732231609966,23.776884,256.56,256.49,7.58495502]
[1732231610347,2.5,256.64,256.47,3.8989]
[1732231610348,0.2038133,256.58,256.53,7.58495502]
[1732231610558,0.2038133,256.58,256.55,7.58495502]
[1732231611067,0.2038133,256.58,256.57,7.58495502]
[1732231611243,0.2038133,256.58,256.49,30.33982008]
[1732231611450,0.2038133,256.58,256.5,20.0]
[1732231611645,0.2038133,256.58,256.52,6.58495502]
[1732231612452,31.36183902,256.57,256.47,21.23165502]
[1732231613661,23.776884,256.55,256.47,21.23165502]
[1732231614755,3.898,256.55,256.47,21.23165502]
[1732231618072,3.898,256.55,256.47,17.33265502]
[1732231618373,3.898,256.55,256.47,21.23165502]
[1732231620751,3.898,256.55,256.49,7.58495502]
[1732231621354,27.674584,256.56,256.51,7.58495502]
[1732231621559,0.2038133,256.58,256.55,7.58495502]
[1732231622175,0.2038133,256.58,256.57,7.58495502]
[1732231623259,0.2038133,256.58,256.53,7.58495502]
[1732231623564,4.1012133,256.58,256.52,9.7455]
[1732231623756,0.2038133,256.58,256.53,7.58495502]
[1732231623956,0.2038133,256.58,256.47,9.7475]
[1732231623957,7.58495502,256.55,256.47,9.7475]
[1732231624178,7.58495502,256.55,256.47,17.33245502]
[1732231624982,11.48285502,256.55,256.47,21.23145502]
[1732231625966,23.776884,256.54,256.47,17.33245502]
[1732231626168,0.39535068,256.52,256.47,9.7475]
[1732231627870,0.39535068,256.52,256.47,17.33245502]
[1732231628397,0.39535068,256.52,256.47,21.23145502]
[1732231629276,0.39535068,256.52,256.47,13.6465]
[1732231630902,0.39535068,256.52,256.47,21.23145502]
[1732231633292,0.39535068,256.52,256.47,17.33245502]
[1732231633598,0.39535068,256.52,256.47,21.23145502]
[1732231637402,0.39535068,256.52,256.51,7.58495502]
[1732231638481,0.39535068,256.52,256.51,27.58495502]
[1732231639395,0.39535068,256.52,256.51,31.48335502]
[1732231643280,0.39535068,256.52,256.51,3.8984]
[1732231643489,0.39535068,256.52,256.51,31.48335502]
[1732231651285,0.39535068,256.52,256.51,3.8984]
[1732231651515,0.39535068,256.52,256.47,36.82785502]
[1732231651686,0.39535068,256.52,256.47,17.33245502]
[1732231653617,7.58495502,256.5,256.39,6.601]
[1732231653797,7.58495502,256.48,256.38,3.9004]
[1732231654125,7.58495502,256.48,256.4,7.58495502]
[1732231654794,7.58495502,256.48,256.41,3.9]
[1732231655607,11.48385502,256.48,256.41,3.9]
[1732231657421,7.58495502,256.48,256.41,3.9]
[1732231659923,23.776884,256.44,256.38,9.7511]
[1732231660419,23.776884,256.44,256.37,7.58495502]
[1732231660606,23.776884,256.44,256.37,11.48545502]
[1732231660809,23.776884,256.44,256.33,9.7527]
[1732231661011,23.776884,256.44,256.36,7.58495502]
[1732231661919,23.776884,256.42,256.36,7.58495502]
[1732231662102,23.776884,256.42,256.34,9.7526]
[1732231663623,3.9,256.41,256.34,9.7526]
[1732231663822,23.776884,256.4,256.34,9.7526]
[1732231667225,15.96,256.46,256.37,7.58495502]
[1732231667403,23.776884,256.44,256.37,7.58495502]
[1732231668241,23.776884,256.44,256.39,7.58495502]
[1732231668728,15.96,256.46,256.41,7.58495502]
[1732231669223,15.96,256.46,256.43,7.58495502]
[1732231669612,15.96,256.46,256.41,7.58495502]
[1732231670829,19.8592,256.46,256.41,7.58495502]
[1732231671422,15.96,256.46,256.41,7.58495502]
[1732231671618,15.96,256.46,256.41,11.48485502]
[1732231671998,3.8987,256.5,256.45,7.58495502]
[1732231672206,20.77955068,256.52,256.47,7.58495502]
[1732231674014,23.776884,256.49,256.42,20.0]
[1732231674216,23.776884,256.49,256.42,27.58495502]
[1732231674415,23.776884,256.49,256.42,7.58495502]
[1732231675522,3.8989,256.48,256.42,7.58495502]
[1732231675930,23.776884,256.47,256.42,7.58495502]
[1732231677224,27.675984,256.47,256.42,7.58495502]
[1732231679130,27.675984,256.47,256.31,24.48795715]
[1732231679334,27.675984,256.47,256.41,7.58495502]
[1732231679514,27.675984,256.47,256.34,20.0]
[1732231679714,27.675984,256.47,256.38,7.58495502]
[1732231679924,27.675984,256.47,256.4,7.58495502]
[1732231680427,3.8984,256.51,256.44,7.58495502]
[1732231681527,27.675484,256.5,256.44,7.58495502]
[1732231683526,20.77965068,256.52,256.44,3.8994]
[1732231683831,20.77965068,256.52,256.46,7.58495502]
[1732231684238,20.77965068,256.52,256.44,11.48435502]
[1732231684616,7.58495502,256.51,256.41,9.7498]
[1732231684937,7.58495502,256.51,256.42,27.58495502]
[1732231685815,3.8986,256.5,256.44,7.58495502]
[1732231686017,3.8986,256.5,256.43,3.8996]
[1732231688430,3.8986,256.5,256.41,17.33475502]
[1732231688734,3.8986,256.5,256.41,21.23465502]
[1732231690318,16.1048,256.48,256.38,7.58495502]
[1732231690626,7.58495502,256.47,256.38,7.58495502]
[1732231691536,3.8992,256.46,256.38,11.48525502]
[1732231692542,3.8992,256.46,256.4,7.58495502]
[1732231698820,4.29365068,256.52,256.44,7.58495502]
[1732231699043,4.29365068,256.52,256.47,7.58495502]
[1732231699429,0.39535068,256.52,256.49,7.58495502]
[1732231699630,0.39535068,256.52,256.51,7.58495502]
[1732231702938,0.39535068,256.52,256.49,7.58495502]
[1732231704325,0.39535068,256.52,256.48,9.7469]
[1732231704935,0.39535068,256.52,256.49,7.58495502]
[1732231705350,0.39535068,256.52,256.48,13.6458]
[1732231705546,0.39535068,256.52,256.48,17.33185502]
[1732231706145,11.8786057,256.52,256.44,11.48435502]
[1732231706354,23.776884,256.51,256.43,9.7491]
[1732231706526,23.776884,256.51,256.43,17.33405502]
[1732231706727,27.675384,256.51,256.43,21.23365502]
[1732231710038,7.58495502,256.48,256.4,7.58495502]
[1732231710227,7.58495502,256.48,256.41,20.0]
[1732231710863,16.5777,256.49,256.42,7.58495502]
[1732231711453,24.16265502,256.49,256.4,7.58495502]
[1732231711654,3.8989,256.48,256.41,3.9]
[1732231713229,3.8989,256.48,256.42,7.58495502]
[1732231714130,3.8989,256.48,256.31,8.53456386]
[1732231714131,3.8989,256.48,256.4,7.58495502]
[1732231714444,11.48385502,256.48,256.4,11.48505502]
[1732231715129,11.48385502,256.48,256.32,13.6547]
[1732231715335,11.48385502,256.48,256.38,7.58495502]
[1732231715336,7.58495502,256.46,256.38,7.58495502]
[1732231715746,7.58495502,256.46,256.36,7.58495502]
[1732231715948,7.58495502,256.44,256.34,7.58495502]
[1732231716374,0.05,256.42,256.34,7.58495502]
[1732231718063,0.05,256.42,256.35,3.9009]
[1732231720142,0.05,256.42,256.38,7.58495502]
[1732231720346,0.05,256.42,256.4,7.58495502]
[1732231720668,0.05,256.42,256.37,20.0]
[1732231720845,0.05,256.42,256.41,7.58495502]
[1732231721260,0.05,256.42,256.41,11.48495502]
[1732231726266,0.05,256.42,256.41,31.48495502]
[1732231727561,0.05,256.42,256.41,11.48495502]
[1732231728548,0.05,256.42,256.32,12.07337721]
[1732231728847,0.05,256.42,256.36,9.7518]
[1732231729452,0.05,256.42,256.36,17.33675502]
[1732231729645,0.05,256.42,256.36,21.23745502]
[1732231729856,23.776884,256.4,256.31,9.7536]
[1732231730075,7.58495502,256.39,256.31,9.7536]
[1732231730953,3.9004,256.38,256.31,9.7536]
[1732231732156,3.9004,256.38,256.25,20.0]
[1732231732452,3.9004,256.38,256.31,7.58495502]
[1732231733558,23.776884,256.41,256.24,23.776884]
[1732231733768,3.9002,256.4,256.32,7.58495502]
[1732231733949,3.9002,256.4,256.34,7.58495502]
[1732231734759,14.07095502,256.42,256.34,7.58495502]
[1732231734760,10.3859,256.42,256.34,7.58495502]
[1732231734963,3.9499,256.42,256.34,11.48595502]
[1732231735346,3.9499,256.42,256.37,7.58495502]
[1732231735563,0.05,256.42,256.37,7.58495502]
[1732231742072,0.05,256.42,256.35,7.58495502]
[1732231743772,0.05,256.42,256.35,11.48575502]
[1732231745074,7.63495502,256.42,256.35,7.58495502]
[1732231745373,7.63495502,256.42,256.34,20.0]
[1732231745570,7.63495502,256.42,256.26,20.0]
[1732231745571,7.58495502,256.4,256.26,20.0]
[1732231745768,7.58495502,256.38,256.28,9.7546]
[1732231746155,23.776884,256.37,256.29,7.58495502]
[1732231746784,15.1917,256.36,256.28,9.7546]
[1732231746955,19.0926,256.36,256.29,7.58495502]
[1732231747662,19.0926,256.36,256.29,11.48675502]
[1732231748966,19.0926,256.36,256.25,19.5121]
[1732231749169,19.0926,256.36,256.28,7.58495502]
[1732231750272,19.0926,256.36,256.28,11.48685502]
[1732231752484,19.0926,256.36,256.28,7.58495502]
[1732231752671,7.08495502,256.33,256.26,3.9021]
[1732231753173,7.58495502,256.29,256.2,7.58495502]
[1732231753955,15.3715,256.26,256.19,9.7581]
[1732231754162,7.58495502,256.24,256.16,3.9036]
[1732231754580,7.58495502,256.22,256.16,3.9036]
[1732231755459,7.58495502,256.22,256.14,21.24915502]
[1732231756690,11.48795502,256.22,256.14,13.6642]
[1732231756877,7.58495502,256.22,256.14,21.24915502]
[1732231757077,7.58495502,256.24,256.14,21.24915502]
[1732231757382,23.776884,256.23,256.14,21.24915502]
[1732231757688,7.58495502,256.24,256.14,21.24915502]
[1732231757879,11.48755502,256.24,256.14,21.24915502]
[1732231758332,23.776884,256.25,256.17,7.58495502]
[1732231758673,15.3715,256.26,256.21,7.58495502]
[1732231758872,15.3715,256.26,256.23,7.58495502]
[1732231759400,15.3715,256.26,256.21,7.58495502]
[1732231759766,15.3715,256.32,256.23,7.58495502]
[1732231759965,23.776884,256.31,256.23,7.58495502]
[1732231760573,23.776884,256.31,256.25,7.58495502]
[1732231761783,23.776884,256.31,256.25,7.52570162]
[1732231762775,7.58495502,256.3,256.23,20.0]
[1732231763099,7.58495502,256.26,256.15,20.0]
[1732231763274,7.58495502,256.26,256.18,7.58495502]
[1732231764196,11.48725502,256.26,256.18,11.48825502]
[1732231764576,7.58495502,256.24,256.16,7.58495502]
[1732231764774,7.58495502,256.24,256.16,11.48865502]
[1732231766890,7.58495502,256.24,256.16,17.34445502]
[1732231767196,7.58495502,256.26,256.18,7.58495502]
[1732231767369,15.3715,256.32,256.2,7.58495502]
[1732231767569,7.58495502,256.29,256.2,7.58495502]
[1732231768194,3.9019,256.28,256.2,11.48805502]
[1732231768874,3.9016,256.3,256.22,7.58495502]
[1732231769202,3.9016,256.3,256.22,7.53495502]
[1732231770005,3.9016,256.3,256.24,7.58495502]
[1732231771072,3.9016,256.3,256.22,7.58495502]
[1732231772200,31.36183902,256.29,256.2,17.34295502]
[1732231772578,23.776884,256.29,256.2,17.34295502]
[1732231772778,31.36183902,256.29,256.2,21.24615502]
[1732231773098,23.776884,256.29,256.2,21.24615502]
[1732231773400,31.36183902,256.29,256.22,7.58495502]
[1732231774304,3.9019,256.28,256.22,7.58495502]
[1732231776299,31.36183902,256.27,256.2,9.758]
[1732231778504,35.26403902,256.27,256.2,9.758]
[1732231779903,35.26403902,256.27,256.2,7.58495502]
[1732231780592,35.26403902,256.27,256.19,7.58495502]
[1732231780992,35.26403902,256.27,256.2,3.9032]
[1732231785602,27.679084,256.27,256.2,3.9032]
[1732231785907,35.26403902,256.27,256.18,13.6619]
[1732231786106,35.26403902,256.27,256.19,7.58495502]
[1732231786910,27.679084,256.27,256.19,7.58495502]
[1732231787110,27.679084,256.27,256.19,11.48825502]
[1732231790202,15.3715,256.32,256.21,7.58495502]
[1732231790412,3.9016,256.31,256.23,7.58495502]
[1732231790705,22.95645502,256.32,256.25,7.58495502]
[1732231790706,15.3715,256.32,256.25,7.58495502]
[1732231791788,15.3715,256.32,256.26,3.9022]
[1732231791999,3.9015,256.31,256.25,7.58495502]
[1732231792195,15.3715,256.32,256.25,7.58495502]
[1732231792390,15.3715,256.32,256.25,11.48715502]
[1732231793293,22.95645502,256.32,256.25,11.48715502]
[1732231794402,26.85785502,256.32,256.25,11.48715502]
[1732231796705,26.85785502,256.32,256.25,7.58495502]
[1732231796904,26.85785502,256.32,256.24,9.7563]
[1732231797103,23.776884,256.31,256.24,9.7563]
[1732231797304,23.776884,256.31,256.21,7.58495502]
[1732231797305,7.58495502,256.3,256.21,7.58495502]
[1732231798495,3.9018,256.29,256.23,7.58495502]
[1732231800297,3.9018,256.29,256.21,11.48785502]
[1732231801392,3.9018,256.29,256.23,7.58495502]
[1732231801797,7.58495502,256.25,256.17,7.58495502]
[1732231802924,7.58495502,256.25,256.18,3.9035]
[1732231803101,11.48735502,256.25,256.18,3.9035]
[1732231803697,11.48735502,256.25,256.17,7.58495502]
[1732231804231,11.48735502,256.25,256.17,11.48855502]
[1732231808022,11.48735502,256.25,256.12,2.03191723]
[1732231808023,7.58495502,256.22,256.12,2.03191723]
[1732231808215,7.58495502,256.22,256.15,7.58495502]
[1732231808898,7.58495502,256.22,256.14,7.58495502]
[1732231809724,11.48785502,256.22,256.15,3.9039]
[1732231810710,11.48785502,256.22,256.14,7.58495502]
[1732231811214,7.58495502,256.16,256.08,17.34745502]
[1732231811601,7.58495502,256.16,256.09,3.9047]
[1732231812115,11.48875502,256.16,256.09,3.9047]
[1732231812314,7.58495502,256.16,256.09,3.9047]
[1732231812515,7.58495502,256.16,256.09,11.48965502]
[1732231812899,7.58495502,256.13,256.08,9.7625]
[1732231813118,7.58495502,256.12,256.05,7.58495502]
[1732231813420,7.58495502,256.12,256.05,3.9053]
[1732231813604,7.58495502,256.12,256.04,17.34895502]
[1732231813919,11.48935502,256.12,256.04,9.764]
[1732231814120,11.48935502,256.12,255.99,13.6719]
[1732231814121,7.58495502,256.05,255.99,13.6719]
[1732231814324,7.58495502,256.05,255.99,9.7656]
[1732231814907,7.58495502,256.05,255.96,11.49165502]
[1732231815118,7.58495502,256.03,255.96,3.9067]
[1732231815307,7.58495502,256.03,255.96,13.6738]
[1732231817026,7.58495502,256.01,255.96,9.7671]
[1732231817322,7.58495502,256.01,255.94,3.907]
[1732231817534,7.58495502,255.99,255.91,9.7688]
[1732231817700,7.58495502,255.99,255.91,17.35375502]
[1732231818027,15.3479,256.04,255.97,7.58495502]
[1732231818361,15.3479,256.04,256.02,7.58495502]
[1732231818525,15.3479,256.04,256.0,7.58495502]
[1732231819421,15.3479,256.04,256.0,11.49115502]
[1732231819823,15.3479,256.04,255.98,9.7662]
[1732231820025,15.3479,256.04,255.99,7.58495502]
[1732231820512,15.3479,256.04,255.98,13.6726]
[1732231820719,15.3479,256.04,255.98,21.25755502]
[1732231821816,15.3479,256.04,256.0,7.58495502]
[1732231822529,15.3479,256.1,256.02,7.58495502]
[1732231822824,15.3479,256.1,256.04,7.58495502]
[1732231823619,15.3479,256.1,256.06,7.58495502]
[1732231823932,15.3479,256.1,256.07,3.9051]
[1732231824633,15.3479,256.1,256.06,7.58495502]
[1732231825015,15.3479,256.1,256.06,11.49015502]
[1732231825328,19.1375,256.16,256.08,7.58495502]
[1732231825529,15.2337,256.16,256.08,7.58495502]
[1732231825851,15.2337,256.16,256.09,3.9048]
[1732231826017,15.2337,256.16,256.1,7.58495502]
[1732231826613,15.2337,256.16,256.09,13.6669]
[1732231827736,26.72245502,256.16,256.09,13.6669]
[1732231828519,7.58495502,256.12,255.99,33.6724]
[1732231828721,7.58495502,256.12,256.03,20.0]
[1732231828922,7.58495502,256.12,256.04,7.58495502]
[1732231829737,7.58495502,256.12,256.05,3.9054]
[1732231832842,7.58495502,256.12,256.05,13.6691]
[1732231834628,7.58495502,256.14,256.06,7.58495502]
[1732231834941,7.58495502,256.14,256.05,13.6691]
[1732231835127,7.58495502,256.14,256.05,21.25405502]
[1732231835128,23.776884,256.13,256.05,21.25405502]
[1732231835522,7.58495502,256.12,256.05,13.6691]
[1732231836740,11.48935502,256.12,256.05,13.6691]
[1732231837256,7.58495502,256.12,256.05,13.6691]
[1732231838732,11.48935502,256.12,256.05,13.6691]
[1732231839737,7.58495502,256.1,255.99,20.0]
[1732231839938,7.58495502,256.1,256.0,7.58495502]
[1732231840940,3.9048,256.09,256.01,13.6712]
[1732231846642,3.9048,256.09,256.0,7.58495502]
[1732231847821,3.9048,256.09,256.01,13.6712]
[1732231848725,3.9048,256.09,256.02,7.58495502]
[1732231850258,3.9048,256.09,256.02,11.49075502]
[1732231851727,15.2337,256.16,256.07,7.58495502]
[1732231851922,7.58495502,256.15,256.07,7.58495502]
[1732231852752,7.58495502,256.13,256.03,7.58495502]
[1732231853056,7.58495502,256.11,256.03,7.58495502]
[1732231853633,23.776884,256.1,256.03,7.58495502]
[1732231853843,27.681584,256.1,256.03,7.58495502]
[1732231854343,27.681584,256.1,256.03,11.49065502]
[1732231857052,23.776884,256.14,256.07,7.58495502]
[1732231857360,15.2337,256.16,256.09,7.58495502]
[1732231857651,19.1375,256.16,256.09,7.58495502]
[1732231858441,26.72245502,256.16,256.09,7.58495502]
[1732231858754,26.72245502,256.16,256.09,11.48975502]
[1732231859652,23.776884,256.15,256.07,11.48995502]
[1732231859850,23.776884,256.15,256.07,7.58495502]
[1732231860558,3.9041,256.14,256.07,7.58495502]
[1732231861061,3.9041,256.14,256.07,11.49005502]
[1732231861354,26.72245502,256.16,256.07,11.49005502]
[1732231863436,15.2337,256.16,256.09,7.58495502]
[1732231863760,15.2337,256.16,256.13,7.58495502]
[1732231863948,15.2337,256.16,256.11,7.58495502]
[1732231864854,15.2337,256.16,256.11,11.48935502]
[1732231866760,15.2337,256.16,256.11,3.9044]
[1732231867062,15.2337,256.16,256.11,11.48935502]
[1732231870160,15.2337,256.16,256.13,7.58495502]
[1732231870472,15.8967,256.23,256.15,7.58495502]
[1732231870641,15.8967,256.23,256.1,30.33982008]
[1732231870642,15.8967,256.23,256.18,7.58495502]
[1732231870843,15.8967,256.23,256.2,7.58495502]
[1732231871261,20.4016,256.3,256.2,7.58495502]
[1732231871444,27.98655502,256.3,256.2,7.58495502]
[1732231871870,7.58495502,256.28,256.2,7.58495502]
[1732231872368,7.58495502,256.26,256.17,3.9035]
[1732231872947,7.58495502,256.26,256.16,7.58495502]
[1732231873349,7.58495502,256.26,256.16,11.48865502]
[1732231873572,3.9021,256.27,256.2,7.58495502]
[1732231874448,16.5,256.3,256.24,7.58495502]
[1732231874868,20.4017,256.3,256.24,7.58495502]
[1732231875165,16.5,256.3,256.26,7.58495502]
[1732231876272,7.58495502,256.35,256.26,7.58495502]
[1732231876562,3.9009,256.35,256.28,7.58495502]
[1732231877149,11.48585502,256.35,256.28,7.58495502]
[1732231877345,3.9009,256.35,256.28,7.58495502]
[1732231877546,3.9009,256.35,256.26,11.48715502]
[1732231877748,7.58495502,256.32,256.18,20.0]
[1732231878047,7.58495502,256.32,256.23,7.58495502]
[1732231878444,23.776884,256.31,256.23,7.58495502]
[1732231879452,3.9016,256.3,256.23,7.58495502]
[1732231879668,7.58495502,256.28,256.19,17.34305502]
[1732231880872,7.58495502,256.28,256.19,21.24635502]
[1732231881067,7.58495502,256.26,256.17,3.9035]
[1732231881371,7.58495502,256.24,256.16,3.9037]
[1732231881562,3.9024,256.25,256.17,7.58495502]
[1732231882254,15.8057,256.27,256.19,7.58495502]
[1732231882472,19.7079,256.27,256.19,7.58495502]
[1732231883170,19.7079,256.27,256.16,13.6632]